Cogmind - Beta 16 --- EXPLORER MODE // 2025.12.22 @ 17:16:27 Player: K.K.Y. Result: Destroyed by G-47 Trooper with Particle Gun Performance ------------- Evolutions (0) 0 Regions Visited (4) 800 Robots Destroyed (38) 190 Value Destroyed (940) 940 Prototype IDs (19) 380 Alien Tech Used (0) 0 Bonus (2059) 2059 TOTAL SCORE: 4369 Bonus ------- Follower Combat Kills 187 Delivered SUBCON Basin 2000 Friendly Fire -128 Cogmind --------- Core Integrity 0/250 Matter 300/300 Energy 130/140 System Corruption 8% Temperature Warm (116) Movement Hovering (217) Ox2 Location -8/Recycling Parts ------- > --- POWER (1) -------- Light Deuterium Engine > --- PROPULSION (2) --- Combat Airjet Combat Airjet (fused) > --- UTILITY (3) ------ High-capacity Storage Unit Structural Scanner Sensor Array > --- WEAPON (2) ------- Beamcaster Ripper > --- INVENTORY (20) --- Humpback Makeshift System Shield Tech Extrapolator Autobeam Multitool Peak State ------------ > --- POWER ------------ Light Deuterium Engine > --- PROPULSION ------- Combat Airjet Combat Airjet > --- UTILITY ---------- High-capacity Storage Unit Structural Scanner Sensor Array > --- WEAPON ----------- Beamcaster Bore Cannon > --- INVENTORY -------- Humpback Makeshift System Shield Rainbow Chip Missile Launcher SUBCON Basin [Rating: 46] Favorites ----------- Power Light Deuterium Engine Engine Light Deuterium Engine Propulsion Combat Airjet Treads Light Treads Hover Unit Combat Airjet Utility Sensor Array Device Sensor Array Storage Medium Storage Unit Protection Light Armor Plating Weapon Medium Laser Energy Gun Medium Laser Ballistic Cannon Bore Cannon Slashing Weapon Ripper Build | -11 -10 -10 -10 -8 ------- Run | Yrd Mat Min Sub Rec Slots Evolved 1 | . 1 . . . Power . | . . . . . Propulsion . | . . . . . Utility 1 | . 1 . . . Weapon . | . . . . . Parts Attached 17 | 6 2 6 3 . Power 2 | 1 . 1 . . Engine 2 | 1 . 1 . . Core . | . . . . . Reactor . | . . . . . Propulsion 5 | 2 . 3 . . Treads 3 | 2 . 1 . . Leg . | . . . . . Wheel . | . . . . . Hover 2 | . . 2 . . Flight . | . . . . . Utility 6 | 2 2 1 1 . Device 3 | . 2 1 . . Storage 2 | 1 . . 1 . Processor . | . . . . . Hackware . | . . . . . Protection 1 | 1 . . . . Artifact . | . . . . . Weapon 4 | 1 . 1 2 . Energy Gun 2 | 1 . . 1 . Energy Cannon . | . . . . . Ballistic Gun . | . . . . . Ballistic Cannon 1 | . . 1 . . Launcher . | . . . . . Special Weapon . | . . . . . Impact Weapon . | . . . . . Slashing Weapon 1 | . . . 1 . Piercing Weapon . | . . . . . Special Melee Weapon . | . . . . . Unidentified Prototypes . | . . . . . Corrupted Parts 1 | . . 1 . . System Corruption 7 | . . 7 . . Parts Lost 4 | . . 2 2 . Power 1 | . . 1 . . Propulsion . | . . . . . Utility 1 | . . 1 . . Weapon 2 | . . . 2 . Highest Loss Streak 2 | . . 2 1 . To Critical Strikes . | . . . . . Average Backups 6 | 2 5 9 6 4 Power . | . . . . . Propulsion . | . . . . . Utility 4 | 1 3 5 4 2 Weapon 1 | . 1 2 1 1 Tool/Special . | . . . . . Unused Backups 15 | . . 1 10 4 Power 1 | . . 1 . . Propulsion 1 | . . . 1 . Utility 9 | . . . 6 3 Weapon 3 | . . . 3 . Tool/Special 1 | . . . . 1 Average Slot Usage (%) 93 | . 86 90 97 100 Engine 11 | . 12 10 12 12 Treads 8 | . 24 10 . . Hover 16 | . . 14 25 25 Device 22 | . 17 21 25 25 Storage 12 | . 12 12 12 12 Protection 1 | . 6 . . . Energy Gun 11 | . 12 12 10 12 Ballistic Cannon 4 | . . 7 7 . Slashing Weapon 3 | . . . 4 12 Peak Build Rating 46 | 6 7 24 46 44 Average Rating 24 | 4 6 16 34 37 On Entrance 16 | . 6 7 24 44 Avg Prop Armor Cover (%) 11 | . . 11 . . Naked Turns . | . . . . . Heaviest Build 61 | 20 21 28 61 55 Greatest Support 40 | 40 40 40 24 24 Greatest Overweight (x) 2 | . . 1 2 2 Average Overweight (x) 1 | . . . 1 2 Largest Inventory Capacity 20 | 10 10 10 20 20 Average Capacity 14 | 8 10 10 17 20 Most Carried 20 | 5 7 10 20 20 Average Carried 11 | 2 5 9 14 15 Final Capacity 20 | 10 10 10 20 20 Final Carried 20 | 3 7 10 20 6 Class Distribution -------------------- 100% | Hacker-Mutant Dominant Class ---------------- Hacker-Mutant | -10/Materials Hacker-Mutant | -10/Mines Hacker-Mutant | -10/Subcaves Hacker-Mutant | -8/Recycling Resources | -11 -10 -10 -10 -8 ----------- Run | Yrd Mat Min Sub Rec Matter Collected 1016 | 241 49 153 520 53 Remotely . | . . . . . Salvage Created 1623 | 96 309 288 552 378 Parts 80 | 4 18 10 32 16 Haulers Intercepted 2 | . 2 . . . Recyclers Shooed 2 | 1 . 1 . . Parts Field Recycled . | . . . . . Retrieved Matter . | . . . . . Parts Self-Destructed . | . . . . . Prevented . | . . . . . Parts Restored . | . . . . . Kills | -11 -10 -10 -10 -8 ------- Run | Yrd Mat Min Sub Rec Combat Hostiles Destroyed 26 | . 6 4 12 4 Melee 2 | . . . 1 1 Guns 18 | . 6 4 5 3 Cannons 6 | . . . 6 . Classes Destroyed 12 | 2 4 2 4 . Worker 1 | . . 1 . . Tunneler 1 | 1 . . . . Hauler 2 | . 2 . . . Recycler 4 | 1 . 2 . 1 Turret 2 | . . . 2 . Watcher 3 | . 3 . . . Swarmer 6 | . 4 . 1 1 Grunt 5 | . 2 2 1 . Sentry 4 | . . . 1 3 Artisan 1 | . . . 1 . Subdweller 9 | . . . 9 . Assembled 2 | . . 2 . . Thug 1 | . . . 1 . Best Kill Streak 3 | 2 3 2 2 1 Combat Bots Only 3 | . 3 2 2 1 Max Kills in Single Turn 1 | 1 1 1 1 1 Gunslinging . | . . . . . Exploded . | . . . . . Melee 1 | . . . 1 1 Uniques/NPCs Destroyed . | . . . . . Combat | -11 -10 -10 -10 -8 -------- Run | Yrd Mat Min Sub Rec Hostile Shots Fired 166 | . 19 59 66 22 Missed 59 | . 5 19 28 7 Hits 107 | . 14 40 38 15 Melee 1 | . . 1 . . Projectile 106 | . 14 39 38 15 Critical Strikes 2 | . . 1 . 1 Part Disruptions 1 | . . 1 . . Damage Taken 999 | . 104 370 399 126 Core 259 | . 25 82 102 50 Absorbed by Shields . | . . . . . Ignored by Resistances 607 | . 69 223 237 78 Core Remaining (%) 100 | 100 . . . . Volleys Fired 160 | 5 46 38 64 7 Largest 2 | 1 1 2 2 1 Hottest 123 | 50 50 98 123 75 Shots Fired 205 | 5 47 43 101 9 Gun 148 | 5 47 34 53 9 Cannon 57 | . . 9 48 . Launcher . | . . . . . Special . | . . . . . Kinetic 57 | . . 9 48 . Thermal 148 | 5 47 34 53 9 Explosive . | . . . . . Electromagnetic . | . . . . . Robot Hit Streak 42 | 5 20 42 15 24 Robot Miss Streak 4 | . 1 2 4 . Penetration Max . | . . . . . Secondary Targets . | . . . . . Shots Hit Robots 149 | 5 44 36 54 10 Core Hits 55 | 3 13 13 19 7 Critical Kills 6 | . . 1 5 . Critical Parts Destroyed 5 | . . 2 3 . Critical Strikes 25 | 2 3 4 15 1 Burn 8 | 2 3 1 1 1 Destroy 17 | . . 3 14 . Melee Attacks 8 | . . . 7 1 Impact . | . . . . . Slashing 8 | . . . 7 1 Piercing . | . . . . . Sneak Attacks . | . . . . . Combat Hostiles . | . . . . . Follow-up Attacks . | . . . . . Damage Inflicted 2403 | 62 543 530 1050 218 Guns 1585 | 62 543 387 403 190 Cannons 687 | . . 143 544 . Explosions . | . . . . . Melee 124 | . . . 96 28 Ramming 7 | . . . 7 . Kinetic 687 | . . 143 544 . Thermal 1585 | 62 543 387 403 190 Explosive . | . . . . . Electromagnetic . | . . . . . Impact . | . . . . . Slashing 124 | . . . 96 28 Piercing . | . . . . . Highest Corruption 8 | . 1 8 8 8 Average Corruption 6 | . 1 5 8 8 Corruption Purged . | . . . . . Corruption Blocked . | . . . . . Effects 138 | . 4 28 83 23 Message Errors 34 | . 2 4 22 6 Matter Fused 33 | . . 7 21 5 Heat Flow Errors 17 | . . 6 9 2 Energy Discharges 12 | . 1 2 5 4 Parts Rejected 3 | . . . 2 1 Parts Fused 1 | . . . 1 . Data Loss (minor) 16 | . . 2 12 2 Data Loss (major) 9 | . . 4 4 1 Misfires 5 | . 1 . 2 2 Alerts 3 | . . 2 1 . Weapon Failures 5 | . . 1 4 . Overload Shots . | . . . . . Overflow Damage 10 | . . 10 . . Projectiles 10 | . . 10 . . Explosions . | . . . . . Melee . | . . . . . Knockbacks 6 | . . 2 4 . Impact . | . . . . . Kinetic 6 | . . 2 4 . Secondary . | . . . . . Self-Inflicted Damage 2 | . . . 2 . Shots . | . . . . . Rammed 4 | . . . 4 . Targets Rammed 4 | . . . 4 . Kicked . | . . . . . Crushed . | . . . . . Highest Temperature 278 | 80 157 278 261 110 Average Temperature 59 | 40 43 81 53 39 Received Heat Transfer 513 | . 66 231 117 99 Effects 3 | . . 3 . . Interference 3 | . . 3 . . Siege Activations . | . . . . . Martial Activations . | . . . . . Shielding Activations . | . . . . . Robots Disrupted . | . . . . . Combat Hostiles . | . . . . . Robots Corrupted . | . . . . . Combat Hostiles . | . . . . . Parts Fried . | . . . . . Impact Corruptions . | . . . . . Robots Melted 2 | . 2 . . . Combat Hostiles . | . . . . . Parts Melted 8 | . 6 . 1 1 Heat Transferred 4736 | 333 1850 1221 925 407 Parts Sabotaged . | . . . . . Parts Stolen . | . . . . . Parts Stripped . | . . . . . Power Chain Reactions . | . . . . . Alert | -11 -10 -10 -10 -8 ------- Run | Yrd Mat Min Sub Rec Maximum Alert Level . | . . . . . Low Security (%) 100 | 100 100 100 . 100 Level 1 . | . . . . . Level 2 . | . . . . . Level 3 . | . . . . . Level 4 . | . . . . . Level 5 . | . . . . . High Security . | . . . . . Max Security . | . . . . . Peak Influence 55 | 10 55 30 . 20 Initial . | . . . . . Average 3 | 1 5 1 . 1 Influence Increases 558 | 10 238 85 135 90 Destroy 0b10 Robot/C 360 | . 120 40 120 80 Destroy 0b10 Robot/NC 60 | 10 25 15 . 10 Destroy Leader 60 | . 40 10 10 . Allied During Kill 5 | . . . 5 . Successful Hack 42 | . 38 4 . . Destroy Structure 1 | . . 1 . . Lose Combat Pursuer 30 | . 15 15 . . Influence Decreases 538 | 10 238 85 135 70 Time Decay 537 | 10 238 84 135 70 Lost Ally 1 | . . 1 . . Squads Dispatched 1 | . . 1 . . Investigation 1 | . . 1 . . Extermination . | . . . . . Reinforcement . | . . . . . Assault . | . . . . . Garrison . | . . . . . Intercept . | . . . . . Searches Triggered . | . . . . . Construction Impeded . | . . . . . Haulers Reinforced . | . . . . . Active Scanning Responses . | . . . . . Cargo Convoy Interrupts . | . . . . . Stealth | -11 -10 -10 -10 -8 --------- Run | Yrd Mat Min Sub Rec Distress Signals 1 | . 1 . . . Communications Jammed . | . . . . . Distress Signals . | . . . . . Times Spotted 52 | . 10 14 22 6 Peak Tracking Total 11 | . 4 11 2 3 Tactical Retreats 3 | . 1 1 1 . Traps | -11 -10 -10 -10 -8 ------- Run | Yrd Mat Min Sub Rec Traps Triggered 2 | . 2 . . . Indirectly . | . . . . . Trap Hack Attempts . | . . . . . Triggered . | . . . . . Disarmed . | . . . . . Reprogrammed . | . . . . . Reused . | . . . . . Traps Extracted . | . . . . . Installed . | . . . . . Triggered . | . . . . . Machines | -11 -10 -10 -10 -8 ---------- Run | Yrd Mat Min Sub Rec Machines Disabled 2 | . . . 2 . Max in Single Turn 2 | . . . 2 . Machines Repaired . | . . . . . Machines Dismantled . | . . . . . Machines Sabotaged . | . . . . . Overloaded Fab Kills . | . . . . . Hacking | -11 -10 -10 -10 -8 --------- Run | Yrd Mat Min Sub Rec Machines Accessed 15 | . 8 2 4 1 Terminals 10 | . 8 1 . 1 Fabricators . | . . . . . Repair Stations . | . . . . . Recycling Units . | . . . . . Scanalyzers . | . . . . . Garrison Access . | . . . . . Total Hacks 60 | . 42 9 7 2 Successful 45 | . 31 6 7 1 Failed 15 | . 11 3 . 1 Catastrophic . | . . . . . Database Lockouts . | . . . . . Manual 52 | . 42 8 . 2 Terminals 52 | . 42 8 . 2 Fabricators . | . . . . . Repair Stations . | . . . . . Recycling Units . | . . . . . Scanalyzers . | . . . . . Garrison Access . | . . . . . Terminal Hacks 34 | . 22 5 7 . Record 4 | . . . 4 . Prototype ID Bank 26 | . 22 4 . . Open Door 2 | . . 1 1 . Proto ID Catalog 1 | . . . 1 . Release Object 1 | . . . 1 . Fabricator Hacks . | . . . . . Repair Station Hacks . | . . . . . Recycling Unit Hacks . | . . . . . Scanalyzer . | . . . . . Garrison Access Hacks . | . . . . . Unauthorized Hacks 10 | . 8 1 . 1 Terminals 10 | . 8 1 . 1 Botnet 10 | . 8 1 . 1 Fabricators . | . . . . . Repair Stations . | . . . . . Recycling Units . | . . . . . Scanalyzers . | . . . . . Garrison Access . | . . . . . Data Cores Recovered . | . . . . . Used . | . . . . . Hacking Detections 10 | . 8 1 . 1 Full Trace Events . | . . . . . Feedback Events . | . . . . . Feedback Blocked . | . . . . . Robot Schematics Acquired . | . . . . . Robots Built . | . . . . . Authchips . | . . . . . Time . | . . . . . Total Robot Build Rating . | . . . . . Part Schematics Acquired . | . . . . . Parts Built . | . . . . . Authchips . | . . . . . Time . | . . . . . Total Part Build Rating . | . . . . . Part Studies Acquired . | . . . . . Parts Repaired . | . . . . . Time . | . . . . . Parts Recycled . | . . . . . Recycled Matter . | . . . . . Retrieved Matter . | . . . . . Retrieved Components . | . . . . . Parts Scanalyzed . | . . . . . Part Schematics Acquired . | . . . . . Parts Damaged . | . . . . . Bothacking | -11 -10 -10 -10 -8 ------------ Run | Yrd Mat Min Sub Rec Used RIF Installer . | . . . . . Robots Hacked . | . . . . . Non-combat . | . . . . . Combat . | . . . . . Robot Hacks Applied . | . . . . . Relay Couplers Released . | . . . . . Fabnet Peak Effective % . | . . . . . Robots Rewired . | . . . . . Allies Hacked . | . . . . . Hacks Repelled . | . . . . . Allies | -11 -10 -10 -10 -8 -------- Run | Yrd Mat Min Sub Rec Total Allies 5 | . . 5 . . Largest Group 4 | . . 4 4 . Highest-Rated Group 71 | . . 71 71 . Highest-Rated Ally 31 | . . 31 31 . Total Orders . | . . . . . Ally Attacks 77 | . . 17 60 . Total Damage 803 | . . 239 564 . Kills 14 | . . 7 7 . Allies Corrupted . | . . . . . Allies Melted . | . . . . . Intel | -11 -10 -10 -10 -8 ------- Run | Yrd Mat Min Sub Rec Active Infowar (turns) 5862 | . 1299 1332 2463 768 Sensors 5861 | . 1299 1332 2463 767 Structural 4869 | . 636 1002 2463 768 Robot Analysis Total . | . . . . . Derelict Logs Recovered 2 | . . . 2 . Drone Launches . | . . . . . Drone Recoveries . | . . . . . Exploration | -11 -10 -10 -10 -8 ------------- Run | Yrd Mat Min Sub Rec Turns Passed 5968 | 68 1337 1332 2463 768 Spaces Moved 3004 | 41 720 742 1157 344 Core 19 | 19 . . . . Treads 976 | 22 720 234 . . Legs . | . . . . . Wheels . | . . . . . Hover 2009 | . . 508 1157 344 Flight . | . . . . . Fastest Speed 50 | 50 160 77 147 217 Average Speed 174 | 109 160 142 192 217 Slowest Speed 240 | 160 160 240 217 217 Overloaded Moves . | . . . . . Propulsion Burnouts . | . . . . . Robots Hopped . | . . . . . Potential Cave-ins 1 | . . . 1 . Cave-ins Triggered . | . . . . . Exploration Rate (%) 70 | 3 99 99 83 70 Regions Visited 4 Branch Regions 3 Pre-discovered Areas . | . . . . . Known Exits Taken 4 | 1 1 1 1 . Unknown Exits Taken . | . . . . . Scrap Searched 8 | . . 2 6 . Spaces Dug 7 | . . . 7 . Terrain Destroyed 17 | . . 2 15 . Melee 4 | . . . 4 . Projectile 13 | . . 2 11 . AOE . | . . . . . Terrain Rammed . | . . . . . Walls Destroyed . | . . . . . Machines Disabled . | . . . . . Actions | -11 -10 -10 -10 -8 --------- Run | Yrd Mat Min Sub Rec Total 3529 | 58 860 976 1277 358 Wait 285 | . 85 176 21 3 Move 3000 | 40 719 741 1156 344 Hop . | . . . . . Pick Up 30 | 7 6 8 8 1 Fast Attach 11 | 2 . 5 3 1 Attach 8 | 4 3 . 1 . Detach 1 | . 1 . . . Swap 2 | . . 1 1 . Drop 20 | . . 7 12 1 Fire 160 | 5 46 38 64 7 Melee 8 | . . . 7 1 Ram 4 | . . . 4 . Kick . | . . . . . Crush . | . . . . . Escape Stasis . | . . . . . Rewire . | . . . . . Trap . | . . . . . Miscellaneous . | . . . . . Route ------- -11/Scrapyard -10/Materials (discovered 5 exits: *Mat x3 / *Min x2) -10/Mines (discovered 3 exits: *Mat x2 / *Sub) -10/Subcaves (discovered 3 exits: *Mat x2 / *Rec) -8/Recycling (discovered 2 exits: *Fac / Scr) History --------- Turn | Location | Event 14 | -11/Scrapyard | Identified exit to Materials 14 | -11/Scrapyard | Discovered exit to Materials (range 15) 69 | -11/Scrapyard | Entered Materials 69 | -10/Materials | Evolved 1 slot: Utility x1 238 | -10/Materials | Identified exit to Mines 238 | -10/Materials | Discovered exit to Mines (range 16) 309 | -10/Materials | Discovered exit to Mines (range 12) 318 | -10/Materials | Build established: Hacker-Mutant 676 | -10/Materials | Identified exit to Materials 676 | -10/Materials | Discovered exit to Materials (range 13) 914 | -10/Materials | Discovered exit to Materials (range 16) 1350 | -10/Materials | Discovered exit to Materials (range 8) 1406 | -10/Materials | Entered Mines 1442 | -10/Mines | Discovered exit to Materials (range 12) 1711 | -10/Mines | Identified exit to Subcaves 1711 | -10/Mines | Discovered exit to Subcaves (range 9) 1889 | -10/Mines | Assembled infested the area 1894 | -10/Mines | Assisted by a Guerilla fighting off Assembled 2047 | -10/Mines | Assisted by bots powering up and referring to "LRC-V3" 2061 | -10/Mines | Met a Derelict shopkeep closing up shop 2625 | -10/Mines | Discovered exit to Materials (range 11) 2738 | -10/Mines | Entered Subcaves 2738 | -10/Subcaves | Accompanied by 4 allies 2743 | -10/Subcaves | Led the pair of lost Derelicts to an unsafe place 2792 | -10/Subcaves | Core integrity fell below 50% 3133 | -10/Subcaves | Identified exit to Materials 3277 | -10/Subcaves | Learned Materials stockpile data 3300 | -10/Subcaves | Disturbed a concealed Subdweller 3398 | -10/Subcaves | Visited 4L-MR0's lab 3419 | -10/Subcaves | Found Rainbow Chip 3557 | -10/Subcaves | Shifting Twisted Machinery released Sub. Laser 3613 | -10/Subcaves | Visited Clippyterm 3620 | -10/Subcaves | Identified exit to Recycling 4054 | -10/Subcaves | Found SUBCON Basin 4301 | -10/Subcaves | Shifting Twisted Machinery released Ripper 4349 | -10/Subcaves | Shifting Twisted Machinery released Flamer 4501 | -10/Subcaves | Shifting Twisted Machinery released Sub. Laser 4550 | -10/Subcaves | Discovered exit to Materials (range 6) 4562 | -10/Subcaves | Shifting Twisted Machinery released Sub. Shrapnel Launcher 4670 | -10/Subcaves | A swath of the cavern ceiling suddenly collapsed 5147 | -10/Subcaves | Core integrity fell below 20% 5201 | -10/Subcaves | Entered Recycling 5576 | -8/Recycling | Identified exit to Factory 5576 | -8/Recycling | Discovered exit to Factory (range 5) 5656 | -8/Recycling | Scanned before Scraplab entrance 5680 | -8/Recycling | Identified exit to Scraptown 5680 | -8/Recycling | Discovered exit to Scraptown (range 11) 5686 | -8/Recycling | Entered Scraplab 5969 | -8/Recycling | Destroyed by G-47 Trooper with Particle Gun Last Messages --------------- 05724_ CU-XL0(c) is busy at their terminal. 05726_ 39-9JF(c) is busy at their terminal. 05743_ The wall retracts into the floor. 05747_ The floor rises up to form a wall. 05753_ YOUJ|24 05795_ R-06 Scavenger collects Imp. Ion Engine. 05825_ System corrupted: Component data lost. 05847_ SA